bitfinex-derivatives/quotes_ETHF0:USTF0_20250904
["timestamp","ask_amount","ask_price","bid_price","bid_amount"]
[1756977567858,1.00880393,4384.7,4384.6,0.7031]
[1756977568156,0.81340393,4384.7,4384.6,0.7031]
[1756977569259,1.02190393,4384.7,4384.6,0.7031]
[1756977570356,1.21290393,4384.7,4384.6,0.7031]
[1756977573961,1.02190393,4384.7,4384.6,0.7031]
[1756977576358,1.44030393,4384.7,4384.6,0.7031]
[1756977576660,4.64810393,4384.7,4384.6,0.3064]
[1756977577463,6.41419659,4384.7,4384.1,0.3083]
[1756977577658,0.6269,4384.2,4384.1,0.5122]
[1756977577857,1.17440714,4384.2,4384.1,0.5122]
[1756977578467,1.44030393,4384.2,4384.1,0.3083]
[1756977581967,0.6269,4383.8,4383.7,3.4117]
[1756977582358,0.66539679,4383.8,4383.7,3.6203]
[1756977582660,0.66539679,4383.8,4383.7,3.9119]
[1756977584365,0.26589679,4383.8,4383.7,3.9119]
[1756977584663,0.26589679,4383.8,4383.7,4.14002]
[1756977584855,0.26589679,4383.8,4383.7,8.14002]
[1756977586782,0.26589679,4383.8,4383.7,7.9119]
[1756977589468,0.26589679,4383.8,4383.7,3.9119]
[1756977589659,0.26589679,4383.8,4383.7,5.90539266]
[1756977594575,0.66589679,4383.8,4383.7,3.9119]
[1756977594773,0.26589679,4383.8,4383.7,3.9119]
[1756977597568,0.26589679,4383.8,4383.7,5.5436147]
[1756977602384,0.26589679,4383.8,4383.7,3.9119]
[1756977602682,0.26589679,4383.8,4383.7,5.5436147]
[1756977605081,3.787,4385.8,4385.0,0.6143]
[1756977605082,0.4,4385.1,4385.0,0.6143]
[1756977605385,1.17659211,4385.1,4385.0,0.6143]
[1756977608283,1.17659211,4385.1,4385.0,0.2916]
[1756977611695,1.17659211,4385.1,4385.0,0.496]
[1756977611897,1.17659211,4385.1,4385.0,0.6143]
[1756977614793,0.94899211,4385.1,4385.0,0.8175]
[1756977616391,0.54899211,4385.1,4385.0,0.8175]
[1756977621397,0.54899211,4385.1,4385.0,2.4492147]
[1756977622599,0.94869211,4385.1,4385.0,0.8175]
[1756977622793,1.17609211,4385.1,4385.0,0.2916]
[1756977622995,0.1995,4384.3,4384.1,3.2078]
[1756977623197,0.3997,4384.0,4383.9,0.3038]
[1756977623503,1.17590562,4384.0,4383.9,0.3038]
[1756977625304,1.17573548,4384.0,4383.9,0.3038]
[1756977626401,0.6271,4384.0,4383.9,0.3038]
[1756977626706,0.6271,4384.0,4383.9,2.1271147]
[1756977627914,1.17553617,4384.0,4383.9,2.1271147]
[1756977628115,0.6271,4384.0,4383.9,2.1271147]
[1756977629610,0.3997,4384.0,4383.9,2.1271147]
[1756977629814,0.6271,4384.0,4383.9,2.1271147]
[1756977630608,0.6271,4384.0,4383.9,0.4954]
[1756977630915,0.3997,4384.0,4383.9,0.6986]
[1756977631308,0.6271,4384.0,4383.9,0.6986]
[1756977632309,0.6271,4384.0,4383.9,0.4954]
[1756977632608,1.17532728,4384.0,4383.9,0.3038]
[1756977636414,0.94792728,4384.0,4383.5,0.1234]
[1756977636616,0.6271,4383.6,4383.5,0.315]
[1756977637318,0.6271,4383.6,4383.5,0.6188]
[1756977637910,0.3997,4383.6,4383.5,0.822]
[1756977638520,0.6271,4383.6,4383.5,0.4272]
[1756977639315,0.6271,4383.6,4383.5,0.6188]
[1756977642325,0.3997,4383.6,4383.5,0.822]
[1756977647728,0.2002,4383.6,4383.5,0.822]
[1756977647926,0.8652,4384.1,4384.0,0.1226]
[1756977648230,1.18512789,4384.1,4384.0,0.821]
[1756977650533,1.41252789,4384.1,4384.0,0.821]
[1756977651228,0.75282789,4384.1,4384.0,2.4527147]
[1756977651428,0.98182789,4384.1,4384.0,2.4527147]
[1756977651736,1.18512789,4384.1,4384.0,0.821]
[1756977655534,0.95612789,4384.1,4384.0,0.821]
[1756977656734,1.18352789,4384.1,4384.0,0.6212]
[1756977656933,0.95612789,4384.1,4384.0,0.821]
[1756977657131,0.75282789,4384.1,4384.0,0.821]
[1756977659133,0.54732789,4384.1,4384.0,2.4527147]
[1756977659334,3.2078,4385.0,4384.1,0.2931]
[1756977659637,0.1157,4385.5,4385.1,0.2931]
[1756977659638,1.22158893,4385.3,4385.1,0.2931]
[1756977659832,3.4368,4385.5,4385.2,0.2931]
[1756977660033,3.2078,4385.5,4385.4,0.6984]
[1756977660434,3.4133,4385.5,4385.4,0.6984]
[1756977660639,3.7254,4385.5,4385.4,0.6984]
[1756977660837,3.9287,4385.5,4385.4,0.6984]
[1756977661339,4.0444,4385.5,4385.0,0.1226]
[1756977661834,3.4133,4385.5,4385.4,0.6984]
[1756977662026,3.2078,4385.5,4385.4,0.6984]
[1756977664133,3.9287,4385.5,4385.4,0.4986]
[1756977664530,4.0444,4385.5,4385.4,0.4986]
[1756977665340,4.0444,4385.5,4385.4,0.2055]
[1756977665535,4.0444,4385.5,4385.3,0.229]
[1756977665737,4.0444,4385.5,4385.1,0.2931]
[1756977665939,4.0444,4385.5,4385.0,0.5221]
[1756977666242,0.7209,4385.1,4385.0,0.4986]
[1756977666536,0.7209,4385.1,4385.0,2.6910742]
[1756977666741,0.3121,4385.4,4385.0,2.5205742]
[1756977666947,3.2078,4385.5,4385.4,0.2931]
[1756977667130,3.2078,4385.5,4385.4,0.6984]
[1756977667843,3.4133,4385.5,4385.4,0.6984]
[1756977668141,3.7254,4385.5,4385.4,0.6984]
[1756977668544,3.9287,4385.5,4385.4,0.6984]
[1756977669347,3.6166,4385.5,4385.4,0.6984]
[1756977671043,3.6166,4385.5,4385.0,0.1226]
[1756977671250,0.7209,4384.9,4384.8,0.2931]
[1756977672146,0.7209,4384.9,4384.7,0.229]
[1756977672340,0.4088,4384.9,4384.7,0.5193]
[1756977672545,0.6858,4384.8,4384.7,0.5193]
[1756977672939,0.6858,4384.8,4384.7,0.2903]
[1756977673139,0.6858,4384.8,4384.7,0.23]
[1756977674045,0.6858,4384.8,4384.7,0.7105]
[1756977674848,0.6858,4384.8,4384.3,3.2078]
[1756977675049,0.3921,4384.6,4384.5,0.4202]
[1756977675250,0.6858,4384.6,4384.5,0.7105]
[1756977675849,0.6858,4384.6,4384.5,0.7095]
[1756977679046,0.6858,4384.6,4384.5,0.9132]
[1756977682755,0.6858,4384.6,4384.5,0.229]
[1756977683351,0.3921,4384.6,4384.3,3.2078]
[1756977683657,0.6858,4384.4,4383.9,0.229]
[1756977683955,0.6858,4383.8,4383.7,3.398]
[1756977684655,0.6858,4383.8,4383.7,3.6883]
[1756977685052,0.4873,4383.8,4383.7,3.892]
[1756977685257,3.8289,4384.4,4384.3,0.1902]
[1756977685556,4.37281343,4384.4,4384.3,0.4805]
[1756977685746,4.66651343,4384.4,4384.3,0.4805]
[1756977686156,4.43751343,4384.4,4384.3,0.4805]
[1756977686551,4.43751343,4384.4,4384.3,0.6842]
[1756977689053,4.43775349,4384.4,4384.3,0.6842]
[1756977689954,4.43775349,4384.4,4384.3,0.4805]
[1756977694163,1.22995349,4384.4,4384.3,0.4805]
[1756977694365,1.22980956,4384.4,4384.3,0.4805]
[1756977695362,0.3921,4384.3,4384.2,0.1902]
[1756977695564,0.6858,4384.3,4384.2,0.6842]
[1756977697558,0.6858,4384.3,4384.2,0.2903]
[1756977697759,0.6858,4383.8,4383.7,3.2078]
[1756977700261,1.23111675,4383.8,4383.7,3.2078]
[1756977700861,1.23111675,4383.8,4383.7,3.6883]
[1756977701662,1.23111675,4383.8,4383.7,0.4805]
[1756977701867,1.23111675,4383.8,4383.7,0.6842]
[1756977706869,0.54531675,4383.8,4383.7,2.9058742]
[1756977707073,3.4087,4384.3,4384.2,0.3929]
[1756977707265,3.95460653,4384.3,4384.2,0.6833]
[1756977707571,4.26530653,4384.3,4384.2,0.6833]
[1756977708373,4.45510653,4384.3,4384.2,0.6833]
[1756977709066,3.95460653,4384.3,4384.2,0.6833]
[1756977709275,3.75370653,4384.3,4384.2,0.6833]
[1756977709665,3.95460653,4384.3,4384.2,0.6833]
[1756977710471,4.26530653,4384.3,4384.2,0.6833]
[1756977710667,4.45510653,4384.3,4384.2,0.6833]
[1756977711575,3.95460653,4384.3,4384.2,0.6833]
[1756977713576,4.26530653,4384.3,4384.2,0.6833]
[1756977713778,1.05750653,4384.3,4384.2,0.6833]
[1756977714081,1.24730653,4384.3,4384.2,0.6833]
[1756977715782,1.24730653,4384.3,4383.7,0.2904]
[1756977715783,0.3107,4383.9,4383.7,0.2904]
[1756977715982,0.7014,4383.8,4383.7,0.4819]
[1756977716180,0.7014,4383.8,4383.7,0.9123]
[1756977721585,0.7014,4383.8,4383.7,2.54437825]
[1756977722379,0.35,4384.5,4383.7,2.54437825]
[1756977722585,0.7014,4384.3,4384.2,2.31537825]
[1756977722781,1.24788397,4384.3,4384.2,2.54437825]
[1756977724086,0.93714895,4384.3,4384.2,2.54437825]
[1756977724484,0.2009,4384.3,4384.2,2.54437825]
[1756977725481,0.5116,4384.3,4384.2,2.54437825]
[1756977731484,0.2009,4384.3,4384.2,2.54437825]
[1756977731886,0.7014,4384.3,4384.2,0.4819]
[1756977732193,0.3907,4384.3,4384.2,0.9123]
[1756977732491,0.2009,4384.3,4384.2,0.9123]
[1756977735296,0.74736923,4384.3,4384.2,0.9123]
[1756977735888,1.06286923,4384.3,4384.2,0.9123]
[1756977736095,1.26076923,4384.3,4384.2,0.9123]
[1756977737194,1.26076923,4384.3,4384.2,2.31537825]
[1756977738097,0.54646923,4384.3,4384.2,2.31537825]
[1756977739792,0.74056923,4384.3,4384.2,2.31537825]
[1756977742698,0.74056923,4384.3,4384.2,0.7109]
[1756977742699,1.25396923,4384.3,4384.2,0.7109]
[1756977742892,0.3155,4384.2,4383.5,3.3282]
[1756977743102,0.7075,4383.6,4383.5,3.7214]
[1756977743290,1.25396923,4383.6,4383.5,3.9504]
[1756977743492,1.25396923,4383.6,4383.5,5.58247825]
[1756977743799,1.25396923,4383.6,4383.5,5.88347825]
[1756977750103,0.7075,4383.6,4383.5,5.88347825]
[1756977750609,0.7075,4383.6,4383.5,4.0224]
[1756977750807,0.7075,4383.6,4383.5,4.2514]
[1756977752597,0.7075,4383.6,4383.5,4.0224]
[1756977752794,0.7075,4383.6,4383.5,4.2514]
[1756977756805,0.392,4383.6,4383.5,4.2514]
[1756977758111,0.1941,4383.6,4383.5,4.2514]
[1756977759607,0.1941,4384.2,4384.1,0.6942]
[1756977760412,0.55255919,4384.2,4384.1,0.6942]
[1756977760604,3.2078,4384.6,4384.5,0.8099]
[1756977760807,3.95439645,4384.6,4384.5,0.8099]
[1756977761007,4.18246645,4384.6,4384.5,0.8099]
[1756977761507,4.49796645,4384.6,4384.5,0.8099]
[1756977761713,4.26989645,4384.6,4384.5,0.8099]
[1756977762209,4.46779645,4384.6,4384.5,0.8099]
[1756977762410,0.124,4384.5,4384.3,0.2961]
[1756977762617,1.26819645,4384.4,4384.3,0.4985]
[1756977763615,1.26819645,4384.4,4384.3,0.6949]
[1756977766209,1.26819645,4384.4,4383.0,0.53316]
[1756977766210,0.7157,4383.8,4383.7,0.4985]
[1756977766406,2.34777825,4383.8,4383.7,0.4985]
[1756977769514,2.90056076,4383.8,4383.7,0.4985]
[1756977770704,3.12956076,4383.8,4383.1,0.2961]
[1756977770905,0.7157,4383.0,4382.9,3.7063]
[1756977771109,1.26848251,4383.0,4382.9,3.7063]
[1756977771616,1.26848251,4383.0,4382.9,0.4985]
[1756977771823,1.39248251,4383.0,4382.9,0.4985]
[1756977772113,1.39248251,4383.0,4382.5,0.1192]
[1756977772318,0.5052,4382.6,4382.5,0.518]
[1756977772913,0.5052,4382.6,4382.5,0.8141]
[1756977774920,0.7157,4382.6,4382.5,0.8141]
[1756977775225,0.7157,4382.6,4382.5,0.6949]
[1756977776225,0.7157,4382.6,4382.5,0.8141]
[1756977778524,0.7157,4382.6,4382.5,0.6949]
[1756977778818,0.4159,4382.6,4382.4,0.2961]
[1756977779012,0.4159,4382.5,4382.4,0.3988]
[1756977779214,0.7157,4382.5,4382.4,0.6949]
[1756977780821,2.47177825,4382.5,4382.4,0.4985]
[1756977781021,0.4159,4381.9,4381.8,3.2078]
[1756977781223,0.7157,4381.9,4381.8,3.2078]
[1756977781518,0.7157,4381.9,4381.6,0.2961]
[1756977781724,2.34777825,4381.7,4381.6,0.4985]
[1756977781922,0.2998,4381.6,4381.4,0.2961]
[1756977782117,0.7157,4381.6,4381.5,0.6949]
[1756977782318,0.7157,4381.6,4381.5,0.8141]
[1756977783723,0.2998,4381.9,4381.6,0.2961]
[1756977784024,3.2078,4382.1,4382.0,0.1192]
[1756977784226,3.2078,4382.1,4382.0,0.8141]
[1756977785125,3.4132,4382.1,4382.0,0.8141]
[1756977785526,3.713,4382.1,4382.0,0.8141]
[1756977786228,3.4132,4382.1,4382.0,0.8141]
[1756977786433,3.2078,4382.1,4382.0,0.8141]
[1756977787324,3.4132,4382.1,4382.0,0.8141]
[1756977788829,3.4132,4382.1,4382.0,0.6949]
[1756977788830,3.9235,4382.1,4382.0,0.6949]
[1756977789625,3.9235,4382.1,4382.0,0.8141]
[1756977790926,3.9235,4382.1,4382.0,0.6949]
[1756977791426,3.9235,4382.1,4382.0,0.2961]
[1756977792334,3.9235,4382.1,4381.9,0.3145]
[1756977794337,3.9235,4382.1,4381.6,0.23]
[1756977794639,0.1194,4382.0,4381.6,0.23]
[1756977794934,0.1194,4382.0,4381.6,0.6314]
[1756977794935,0.4942,4381.7,4381.6,0.6314]
[1756977795236,0.4942,4381.7,4381.6,0.9459]
[1756977796753,0.4942,4381.7,4381.6,0.7159]
[1756977797048,0.2059,4381.7,4381.6,0.7159]
[1756977798249,0.2059,4381.7,4381.6,2.71167841]
[1756977798443,0.4942,4381.9,4381.8,0.4014]
[1756977798747,0.2059,4381.9,4381.8,0.7159]
[1756977802762,0.4942,4381.9,4381.8,0.7159]
[1756977802941,0.2059,4381.9,4381.8,0.7159]
[1756977805753,0.2883,4382.6,4381.9,0.3145]
[1756977805956,0.7038,4382.6,4382.5,0.7159]
[1756977806158,1.25717441,4382.6,4382.5,0.7159]
[1756977806350,1.25717441,4382.6,4382.5,0.523]
[1756977807657,1.25717441,4382.6,4382.5,0.7159]
[1756977808361,1.25717441,4382.6,4382.5,0.8323]
[1756977809359,1.25717441,4382.6,4382.5,0.523]
[1756977811063,0.7038,4382.2,4382.1,0.7159]
[1756977811262,1.25717441,4382.2,4382.1,0.7159]
[1756977815364,0.75927441,4382.2,4382.1,0.7159]
[1756977815562,0.55337441,4382.2,4382.1,0.7159]
[1756977815762,0.55337441,4382.4,4382.1,0.7159]
[1756977815963,0.84167441,4382.4,4382.2,0.3145]
[1756977816166,1.04757441,4382.3,4382.2,0.7159]
[1756977818664,0.55337441,4382.3,4382.2,0.7159]
[1756977818970,0.4942,4382.3,4382.2,0.7159]
[1756977819270,1.04757441,4382.3,4382.2,0.7159]
[1756977819459,1.25717441,4382.3,4382.2,0.7159]
[1756977821368,1.25717441,4382.3,4382.2,0.523]
[1756977824774,1.25717441,4382.3,4382.2,0.7142]
[1756977825865,0.96887441,4382.3,4381.8,5.20357841]
[1756977826071,0.4854,4381.9,4381.8,5.39607841]
[1756977826270,0.6935,4381.9,4381.8,3.5915]
[1756977826672,0.6935,4381.9,4381.8,3.8794]
[1756977827075,0.6935,4381.9,4381.8,3.6882]
[1756977827276,1.24742996,4381.9,4381.8,3.6882]
[1756977829576,1.24742996,4381.9,4381.5,0.2879]
[1756977829777,0.6935,4381.6,4381.5,0.2879]
[1756977829977,1.24742996,4381.6,4381.5,0.4804]
[1756977830878,1.24742996,4381.6,4381.5,0.2879]
[1756977831076,1.24742996,4381.6,4381.5,0.4804]
[1756977831277,0.55392996,4381.6,4381.5,5.99417841]
[1756977831466,0.4854,4382.0,4381.9,0.3837]
[1756977831666,0.7579392,4382.0,4381.9,0.3837]
[1756977831870,0.7579392,4382.0,4381.9,0.6716]
[1756977835179,1.0478392,4382.0,4381.9,0.6716]
[1756977835375,1.2559392,4382.0,4381.9,0.6716]
[1756977835576,0.6935,4381.7,4381.6,0.2879]
[1756977835779,0.6935,4381.7,4381.6,0.4804]
[1756977835975,0.6935,4381.7,4381.6,0.6716]
[1756977836180,0.2899,4382.0,4381.9,0.3837]
[1756977836482,0.56231587,4382.0,4381.9,0.3837]
[1756977836673,0.4036,4382.5,4382.4,0.4804]
[1756977836883,0.96592233,4382.5,4382.4,0.6716]
[1756977837176,1.25582233,4382.5,4382.4,0.6716]
[1756977838272,0.56232233,4382.5,4382.4,0.6716]
[1756977838579,0.4854,4382.8,4382.7,0.3837]
[1756977838780,0.4854,4382.8,4382.7,0.6716]
[1756977839271,1.04763837,4382.8,4382.7,0.6716]
[1756977839976,1.25573837,4382.8,4382.7,0.6716]
[1756977844289,0.96583837,4382.8,4382.7,0.6716]
[1756977844483,0.2899,4383.1,4382.7,0.6716]
[1756977844672,0.4854,4383.1,4383.0,0.7906]
[1756977844877,1.04711147,4383.1,4383.0,0.7906]
[1756977845586,1.04711147,4383.1,4383.0,2.42322057]
[1756977845980,1.04711147,4383.1,4383.0,0.7906]
[1756977846189,0.4854,4382.7,4382.6,0.2879]
[1756977846379,0.6935,4382.7,4382.6,0.4804]
[1756977846982,0.6935,4382.7,4382.6,0.6716]
[1756977847786,0.6935,4382.7,4382.6,2.30422057]
[1756977856994,0.1955,4382.7,4382.6,2.30422057]
[1756977857296,0.7123,4383.2,4383.1,0.2033]
[1756977857494,1.27509965,4383.2,4383.1,0.4916]
[1756977864091,0.3979,4382.7,4382.6,0.2883]
[1756977864394,0.7123,4382.7,4382.6,0.4916]
[1756977864693,0.7123,4382.7,4382.6,0.6863]
[1756977866188,1.27601743,4382.7,4382.6,0.6863]
[1756977867687,1.27601743,4382.7,4382.2,1.63262057]
[1756977867882,0.3979,4382.3,4382.2,2.31892057]
[1756977868088,0.7123,4382.3,4382.2,2.31892057]
[1756977868687,0.3144,4382.6,4382.5,0.1152]
[1756977868891,0.5128,4382.6,4382.5,0.8015]
[1756977869093,1.0770429,4382.6,4382.5,2.43412057]
[1756977869393,0.7626429,4382.6,4382.5,2.43412057]
[1756977869598,0.5642429,4382.6,4382.5,2.43412057]
[1756977871294,1.2765429,4382.6,4382.5,2.12422057]
[1756977871486,1.2765429,4382.6,4382.5,0.4916]
[1756977871691,1.2765429,4382.6,4382.5,0.6863]
[1756977872293,0.5642429,4382.6,4382.5,0.8015]
[1756977872689,0.3144,4383.5,4382.5,4.0093]
[1756977872885,0.56416953,4383.4,4383.3,0.6863]
[1756977873090,0.56416953,4383.4,4383.3,5.52672057]
[1756977874691,0.3144,4384.2,4383.3,7.15934114]
[1756977874892,0.56365352,4384.1,4384.0,3.721]
[1756977875395,0.56365352,4384.1,4384.0,4.0093]
[1756977876098,0.56365352,4384.1,4384.0,5.64192057]
[1756977877296,0.3144,4384.4,4384.1,0.2883]
[1756977877502,0.7123,4384.4,4384.3,0.6863]
[1756977883202,0.3979,4384.4,4384.3,0.6863]
[1756977883503,0.2883,4384.9,4384.4,0.2876]
[1756977883700,2.01398893,4385.0,4384.9,0.4943]
[1756977884413,0.7924,4385.0,4384.9,0.4943]
[1756977884910,0.6736,4385.0,4384.9,0.6867]
[1756977885111,0.1905,4385.0,4384.9,0.6867]
[1756977886712,0.74996249,4385.0,4384.9,0.6867]
[1756977887411,0.55946249,4385.0,4384.9,0.6867]
[1756977889312,0.55946249,4385.0,4384.9,2.31932057]
[1756977890214,0.6736,4385.1,4385.0,0.8127]
[1756977890515,0.6736,4385.1,4385.0,0.4943]
[1756977891616,0.6736,4385.1,4385.0,0.6867]
[1756977897315,0.6736,4385.1,4385.0,2.31932057]
[1756977898919,0.6736,4385.1,4385.0,2.44532057]
[1756977900218,0.1905,4385.1,4385.0,2.44532057]
[1756977901219,0.7502706,4385.1,4385.0,2.44532057]
[1756977901519,1.2333706,4385.1,4385.0,2.44532057]
[1756977904720,0.1235,4385.0,4384.5,0.126]
[1756977904914,0.6736,4384.6,4384.5,0.2067]
[1756977905329,0.6736,4384.6,4384.5,0.4943]
[1756977905823,0.6736,4384.6,4384.5,0.6867]
[1756977906515,0.4788,4385.4,4385.3,0.2067]
[1756977906716,0.74855425,4385.4,4385.3,2.31932057]
[1756977907422,1.03685425,4385.4,4385.3,0.6867]
[1756977908421,1.23165425,4385.4,4385.3,0.6867]
[1756977908926,1.23165425,4385.4,4385.1,0.2876]
[1756977909118,0.6736,4385.2,4385.1,0.4943]
[1756977909318,1.23165425,4385.2,4385.1,0.4943]
[1756977909844,1.23165425,4385.2,4385.1,0.6867]
[1756977920229,1.23165425,4385.2,4385.1,0.6989]
[1756977921426,1.23165425,4385.2,4384.8,1.99220484]
[1756977921625,0.8151,4385.0,4384.9,0.2941]
[1756977921830,1.37315425,4385.0,4384.9,0.2941]
[1756977922226,0.4037,4384.7,4384.6,0.2941]
[1756977922529,1.25405425,4384.7,4384.6,0.5009]
[1756977924232,0.55805425,4384.7,4384.6,0.7055]
[1756977924431,0.55805425,4384.7,4384.6,0.4114]
[1756977925028,0.55805425,4385.4,4384.6,0.4114]
[1756977925227,0.55805425,4385.4,4384.5,3.3321]
[1756977925228,0.2075,4385.0,4384.9,0.4114]
[1756977925433,1.25405425,4385.0,4384.9,0.7055]
[1756977927533,0.96175425,4385.0,4384.9,0.7055]
[1756977927836,0.76555425,4385.0,4384.9,0.7055]
[1756977928130,0.55805425,4385.0,4384.9,0.7055]
[1756977928331,0.76555425,4385.0,4384.9,0.7055]
[1756977928837,1.25405425,4385.0,4384.9,2.69770484]
[1756977929536,0.76555425,4385.0,4384.9,2.69770484]
[1756977929733,0.55805425,4385.0,4384.9,2.69770484]
[1756977929930,0.2075,4385.2,4385.1,0.2941]
[1756977930235,0.2075,4385.2,4385.1,0.7055]
[1756977930538,0.696,4385.2,4385.1,0.7055]
[1756977930838,1.25518741,4385.2,4385.1,0.7055]
[1756977932634,1.25518741,4385.2,4385.1,0.5009]
[1756977933137,1.25518741,4385.2,4385.1,0.7055]
[1756977936634,1.25518741,4385.2,4384.5,3.2078]
[1756977936635,0.4037,4384.6,4384.5,3.2078]
[1756977936939,1.25518741,4384.6,4384.5,5.90550484]
[1756977937139,1.25518741,4384.6,4384.5,6.02980484]
[1756977937439,1.25518741,4384.6,4384.5,6.25787484]
[1756977937831,1.25518741,4384.6,4384.5,6.02980484]
[1756977940241,0.696,4384.6,4384.5,6.02980484]
[1756977940941,0.696,4384.6,4384.5,2.82200484]
[1756977941638,1.25546936,4384.6,4384.5,0.7055]
[1756977941949,0.8151,4384.5,4384.4,3.2078]
[1756977942135,1.37456936,4384.5,4384.4,3.2078]
[1756977942342,1.37456936,4384.5,4384.4,3.7018]
[1756977943943,1.25546936,4384.5,4384.4,3.9108]
[1756977947247,1.25546936,4384.5,4384.4,3.7018]
[1756977947450,1.37926936,4384.5,4384.4,3.7018]
[1756977948449,1.25546936,4384.5,4384.4,3.7018]
[1756977948748,1.25546936,4384.5,4384.4,3.9108]
[1756977950546,1.25546936,4384.5,4384.4,3.7018]
[1756977950750,1.37926936,4384.5,4384.1,0.2943]
[1756977950951,0.6875,4384.2,4384.1,0.494]
[1756977951148,1.24696936,4384.2,4384.1,0.494]
[1756977951451,1.24696936,4384.2,4384.1,2.69520484]
[1756977956149,0.55946936,4384.2,4384.1,2.69520484]
[1756977956455,3.2078,4384.9,4384.6,0.2943]
[1756977956654,3.2078,4384.9,4384.8,2.69520484]
[1756977956845,3.77515763,4384.9,4384.8,2.69520484]
[1756977957047,3.77515763,4384.9,4384.0,0.1206]
[1756977957048,0.2936,4384.8,4384.1,0.2943]
[1756977957347,0.6875,4384.8,4384.7,0.494]
[1756977957547,1.25485764,4384.8,4384.7,0.703]
[1756977958059,0.76675764,4384.8,4384.7,0.703]
[1756977958247,0.56735764,4384.8,4384.7,0.703]
[1756977960356,3.2078,4384.9,4384.8,0.703]
[1756977960553,3.77511147,4384.9,4384.8,0.703]
[1756977960753,3.2078,4385.4,4384.8,0.703]
[1756977960955,0.2936,4385.7,4385.3,2.69520484]
[1756977961149,0.6875,4386.1,4386.0,0.494]
[1756977961454,1.25474216,4386.1,4386.0,0.703]
[1756977961660,0.96114216,4386.1,4386.0,0.8236]
[1756977961852,1.25474216,4386.1,4386.0,0.8236]
[1756977962161,0.96114216,4386.1,4386.0,0.8236]
[1756977962751,0.76664216,4386.1,4386.0,0.8236]
[1756977963354,0.1994,4386.1,4386.0,0.8236]
[1756977963553,0.2936,4386.4,4386.0,0.5293]
[1756977963759,0.493,4386.4,4386.3,0.703]
[1756977964057,1.05957639,4386.4,4386.3,0.703]
[1756977964262,0.493,4386.4,4386.3,0.703]
[1756977964665,0.1994,4386.4,4386.3,0.703]
[1756977967459,0.1994,4386.4,4386.3,2.33318114]
[1756977970255,0.76546571,4386.4,4386.3,2.33318114]
[1756977970658,0.56606571,4386.4,4386.3,2.33318114]
[1756977971355,0.76546571,4386.4,4386.3,2.33318114]
[1756977971557,1.05906571,4386.4,4386.3,2.33318114]
[1756977972556,1.25356571,4386.4,4386.3,2.33318114]
[1756977977059,0.56606571,4386.4,4386.3,2.33318114]
[1756977977260,3.2078,4386.7,4386.6,0.6861]
[1756977977565,3.77327023,4386.7,4386.6,2.31628114]
[1756977977954,3.2078,4387.4,4386.6,6.54424114]
[1756977978266,0.4838,4387.6,4387.5,0.5162]
[1756977978467,0.4838,4387.6,4387.5,0.8016]
[1756977978960,1.04897746,4387.6,4387.5,0.8016]
[1756977979472,0.76417746,4387.6,4387.5,0.8016]
[1756977979859,0.76417746,4387.6,4387.5,2.43178114]
[1756977980260,0.199,4387.6,4387.5,2.43178114]
[1756977981164,3.2078,4387.9,4387.8,0.6861]
[1756977981369,3.4068,4387.9,4387.8,2.31628114]
[1756977981568,3.6916,4387.9,4387.8,2.31628114]
[1756977981969,3.4068,4387.9,4387.8,2.31628114]
[1756977982559,3.6916,4387.9,4387.8,2.31628114]
[1756977984166,3.901,4387.9,4387.8,2.31628114]
[1756977985370,3.901,4387.9,4387.5,0.1155]
[1756977985371,3.6162,4387.9,4387.6,0.2854]
[1756977985567,0.6932,4387.7,4387.6,0.2854]
[1756977985764,0.4084,4387.7,4387.2,0.2854]
[1756977985962,0.4084,4387.7,4387.0,3.3233]
[1756977985963,0.6932,4387.2,4387.1,0.6861]
[1756977986473,0.6932,4387.2,4386.6,0.2854]
[1756977986474,0.2848,4387.1,4386.6,0.2854]
[1756977986680,0.6932,4387.1,4387.0,2.12348114]
[1756977987474,0.6932,4387.1,4387.0,0.4933]
[1756977987679,0.4084,4386.9,4386.7,1.63018114]
[1756977987974,0.6932,4386.6,4386.5,0.4933]
[1756977988174,0.6932,4386.6,4386.5,0.6861]
[1756977988371,0.6932,4386.6,4386.5,0.8016]
[1756977989069,0.6932,4386.6,4386.5,2.43178114]
[1756977990670,0.4084,4386.6,4386.5,2.43178114]
[1756977990873,0.199,4386.6,4386.5,2.43178114]
[1756977993078,3.2078,4387.4,4386.6,0.2854]
[1756977993277,0.4084,4386.9,4386.8,2.03088114]
[1756977993471,1.26013474,4386.9,4386.8,2.31628114]
[1756977995481,4.46793474,4386.9,4386.8,2.31628114]
[1756977996577,4.46793474,4386.9,4386.8,2.12348114]
[1756977997080,4.46793474,4386.9,4386.8,0.4933]
[1756978002687,4.18313474,4386.9,4386.7,1.63018114]
[1756978002988,1.26943474,4386.8,4386.7,1.91688114]
[1756978003187,0.7025,4386.1,4386.0,0.6141]
[1756978003388,0.7025,4386.1,4386.0,2.44548114]
[1756978003788,0.7025,4386.1,4386.0,2.32488114]
[1756978003986,0.7025,4386.1,4386.0,0.6947]
[1756978004185,0.7025,4386.1,4385.0,0.2948428]
[1756978004186,0.7025,4385.7,4385.6,2.12368114]
[1756978005191,0.7025,4385.7,4385.0,0.1155]
[1756978005192,0.4002,4385.4,4385.0,1.63018114]
[1756978005493,3.9103,4385.2,4385.1,0.4935]
[1756978007584,0.4002,4384.9,4384.4,3.2078]
[1756978007786,0.7025,4384.7,4384.6,2.32488114]
[1756978009498,3.9103,4384.7,4384.6,1.63018114]
[1756978010595,3.9103,4384.7,4384.6,1.91688114]
[1756978010793,3.9103,4384.7,4384.6,2.12368114]
[1756978011608,3.608,4384.7,4384.6,2.32488114]
[1756978011804,3.2078,4384.7,4384.6,2.32488114]
[1756978013293,3.2078,4385.2,4385.0,0.1239]
[1756978013602,3.2078,4385.2,4385.1,2.32488114]